fUSD/lending_fUSD_20251227
["ID","MTS","AMOUNT","RATE_DAILY","PERIOD"]
[399891552,1766823041000,-500.0,0.00016999,2]
[399891553,1766823041010,-500.0,0.00016999,2]
[399891554,1766823041019,-296.93519622,0.00016999,2]
[399891555,1766823041029,-500.0,0.00016999,2]
[399891556,1766823041039,-500.0,0.00016999,2]
[399891557,1766823041050,-500.0,0.00016999,2]
[399891558,1766823041060,-500.0,0.00016999,2]
[399891559,1766823041070,-500.0,0.00016999,2]
[399891560,1766823041080,-500.0,0.00016999,2]
[399891561,1766823041090,-500.0,0.00016999,2]
[399891562,1766823041100,-500.0,0.00016999,2]
[399891563,1766823041110,-468.04981383,0.00016999,2]
[399891564,1766823041119,-500.0,0.00016999,2]
[399891565,1766823041129,-500.0,0.00016999,2]
[399891566,1766823041138,-500.0,0.00016999,2]
[399891567,1766823041148,-500.0,0.00016999,2]
[399891568,1766823041158,-500.0,0.00016999,2]
[399891569,1766823041168,-500.0,0.00016999,2]
[399891570,1766823041179,-500.0,0.00016999,2]
[399891571,1766823041190,-502.24903103,0.00016999,2]
[399891572,1766823041199,-500.0,0.00016999,2]
[399891573,1766823041209,-500.0,0.00016999,2]
[399891574,1766823041219,-500.0,0.00016999,2]
[399891575,1766823041229,-500.0,0.00016999,2]
[399891576,1766823041239,-500.0,0.00016999,2]
[399891577,1766823041249,-500.0,0.00016999,2]
[399891578,1766823041260,-500.0,0.00016999,2]
[399891579,1766823041269,-500.0,0.00016999,2]
[399891580,1766823041280,-500.0,0.00016999,2]
[399891581,1766823041294,-500.0,0.00016999,2]
[399891582,1766823041303,-513.78282207,0.00016999,2]
[399891583,1766823041313,-500.0,0.00016999,2]
[399891584,1766823041323,-500.0,0.00016999,2]
[399891585,1766823041334,-500.0,0.00016999,2]
[399891586,1766823041344,-500.0,0.00016999,2]
[399891587,1766823041354,-500.0,0.00016999,2]
[399891588,1766823041363,-500.0,0.00016999,2]
[399891589,1766823041373,-500.0,0.00016999,2]
[399891590,1766823041384,-500.0,0.00016999,2]
[399891591,1766823041394,-409.58414489,0.00016999,2]
[399891592,1766823041416,-500.0,0.00016999,2]
[399891593,1766823041428,-500.0,0.00016999,2]
[399891594,1766823041438,-508.06609576,0.00016999,2]
[399891595,1766823041448,-500.0,0.00016999,2]
[399891596,1766823041458,-500.0,0.00016999,2]
[399891597,1766823041468,-500.0,0.00016999,2]
[399891598,1766823041479,-500.0,0.00016999,2]
[399891599,1766823041490,-500.0,0.00016999,2]
[399891600,1766823041500,-500.0,0.00016999,2]
[399891601,1766823041511,-500.0,0.00016999,2]
[399891602,1766823041521,-500.0,0.00016999,2]
[399891603,1766823041531,-500.0,0.00016999,2]
[399891604,1766823041541,-500.0,0.00016999,2]
[399891605,1766823041551,-510.32017252,0.00016999,2]
[399891606,1766823041561,-500.0,0.00016999,2]
[399891607,1766823041571,-500.0,0.00016999,2]
[399891608,1766823041581,-500.0,0.00016999,2]
[399891609,1766823041591,-381.88353402,0.00016999,2]
[399891610,1766823041603,-238.8372005,0.00016999,2]
[399891611,1766823041613,-500.0,0.00016999,2]
[399891612,1766823041622,-495.80294925,0.00016999,2]
[399891613,1766823041633,-92343.45458721,0.00017,2]
[399891614,1766823041657,-1966.54436356,0.00017,2]
[399891615,1766823041671,-260.25,0.00017,2]
[399891616,1766823041683,-475.75739949,0.00017,2]
[399891617,1766823041695,-11126.85270579,0.00017,2]
[399891618,1766823041707,-3199.48917838,0.00017,2]
[399891619,1766823041719,-4000.0,0.00017,2]
[399891620,1766823041731,-3240.35295883,0.00017,2]
[399891621,1766823041743,-1534.45134402,0.00017,2]
[399891622,1766823041756,-1016.56433863,0.00017,2]
[399891623,1766823041776,-36856.13099982,0.00017,2]
[399891624,1766823041789,-423.81024343,0.00017,2]
[399891625,1766823041867,-151.0,0.00015467,2]
[399891626,1766823041877,-576.40483639,0.00017,2]
[399891627,1766823041890,-1872.59516361,0.00017,2]
[399891628,1766823041901,-16133.85086888,0.00017,2]
[399891629,1766823041914,-463.67418489,0.00017,2]
[399891630,1766823041927,-429.59999994,0.00017,2]
[399891631,1766823041939,-415.89844435,0.00017,2]
[399891632,1766823041952,-405.28705655,0.00017,2]
[399891633,1766823041964,-481.57727047,0.00017,2]
[399891634,1766823041980,-1690.66002,0.00017,2]
[399891635,1766823041992,-918.085566,0.00017,2]
[399891636,1766823042004,-874122.80049565,0.00017,2]
[399891637,1766823042013,-2000.0,0.00017,2]
[399891638,1766823042025,-152.0,0.00017,2]
[399891639,1766823042035,-837.0,0.00017,2]
[399891640,1766823042045,-152.0,0.00017,2]
[399891641,1766823042055,-835.0,0.00017,2]
[399891642,1766823042065,-152.0,0.00017,2]
[399891643,1766823042075,-1257.0,0.00017,2]
[399891644,1766823042086,-1255.0,0.00017,2]
[399891645,1766823042095,-205.434949,0.00017,2]
[399891646,1766823042105,-1000.0,0.00017,2]
[399891647,1766823042115,-155.527038,0.00017,2]
[399891648,1766823042126,-217.94885391,0.00017,2]
[399891649,1766823042141,-151.0,0.00017,2]
[399891650,1766823042151,-161.919396,0.00017,2]
[399891651,1766823042162,-151.0,0.00017,2]
[399891652,1766823042172,-152.426097,0.00017,2]
[399891653,1766823042182,-151.0,0.00017,2]
[399891654,1766823042192,-250.0,0.00017,2]
[399891655,1766823042202,-151.0,0.00017,2]
[399891656,1766823042212,-168.0,0.00017038,2]
[399891657,1766823042222,-1688.21,0.00017048,2]
[399891658,1766823042233,-168.0,0.00017086,2]
[399891659,1766823042244,-150.0,0.000172,7]
[399891660,1766823042255,-1000.0,0.000172,2]
[399891661,1766823042265,-1688.21,0.00017322,2]
[399891662,1766823042276,-279.39,0.00017363,2]
[399891663,1766823042286,-168.0,0.00017373,2]
[399891664,1766823042301,-166.66,0.00017375,2]
[399891665,1766823042312,-1099.0,0.00017389,2]
[399891666,1766823042322,-1000.0,0.000174,2]
[399891667,1766823042334,-214.46901305,0.00017518,2]
[399891668,1766823042345,-287.61899177,0.00017518,2]
[399891669,1766823042355,-168.0,0.00017557,2]
[399891670,1766823042367,-1688.21,0.00017596,2]
[399891671,1766823042377,-168.0,0.00017622,2]
[399891672,1766823042387,-168.0,0.00017734,2]
[399891673,1766823042398,-287.83,0.00017777,2]
[399891674,1766823042408,-1688.22,0.0001787,2]
[399891675,1766823042418,-1501.53074669,0.000179,2]
[399891676,1766823042428,-24200.45047795,0.00017937,2]
[399891677,1766823042439,-500.0,0.00017997,2]
[399891678,1766823042449,-500.0,0.00017997,2]
[399891679,1766823042460,-414.72,0.00017997,2]
[399891680,1766823042470,-500.0,0.00017997,2]
[399891681,1766823042480,-148056.32224459,0.00017998,2]
[399891682,1766823042490,-500.0,0.00017999,2]
[399891683,1766823042504,-493.06,0.00017999,2]
[399891684,1766823042515,-561.12,0.00017999,2]
[399891685,1766823042526,-356585.34704847,0.00018,2]
[399891686,1766823042536,-512.0,0.00018,6]
[399891687,1766823042547,-342.508,0.00018,2]
[399891688,1766823042558,-151.0,0.00018,2]
[399891689,1766823042568,-151.0,0.00018,2]
[399891690,1766823042579,-151.0,0.00018,2]
[399891691,1766823042589,-151.0,0.00018,2]
[399891692,1766823042599,-151.0,0.00018,2]
[399891693,1766823042609,-151.0,0.00018,2]
[399891694,1766823042619,-179.551838,0.00018,2]
[399891695,1766823042629,-151.0,0.00018,2]
[399891696,1766823042640,-151.0,0.00018,2]
[399891697,1766823042650,-1000.0,0.00018082,2]
[399891698,1766823042660,-23444.12589949,0.00018105,2]
[399891699,1766823042671,-500.0,0.00018165,2]
[399891700,1766823042682,-279.39,0.00018231,2]
[399891701,1766823042692,-250.0,0.00018259,2]
[399891702,1766823042702,-500.0,0.00018282,7]
[399891703,1766823042713,-1099.0,0.00018304,2]
[399891704,1766823042723,-1000.0,0.00018506,2]
[399891705,1766823042733,-13941.21,0.00018533,2]
[399891706,1766823042744,-150.99,0.00018533,2]
[399891707,1766823042754,-999.99,0.00018533,2]
[399891708,1766823042766,-309.22,0.00018533,2]
[399891709,1766823042776,-160561.33,0.00018533,2]
[399891710,1766823042786,-9999.99,0.00018533,2]
[399891711,1766823042796,-9999.99,0.00018533,2]
[399891712,1766823042805,-499.99,0.00018533,2]
[399891713,1766823042815,-9999.99,0.00018533,2]
[399891714,1766823042825,-9999.99,0.00018533,2]
[399891715,1766823042835,-5695.12,0.00018533,2]
[399891716,1766823042846,-299.99,0.00018533,4]
[399891717,1766823042857,-150.99,0.00018533,2]
[399891718,1766823042871,-800.0,0.00018556,7]
[399891719,1766823042881,-600.0,0.00018556,7]
[399891720,1766823042891,-432.09,0.00018683,2]
[399891721,1766823042902,-151.0,0.0001876,2]
[399891722,1766823042912,-151.0,0.0001876,2]
[399891723,1766823042922,-1000.0,0.0001876,2]
[399891724,1766823042932,-151.1,0.000188,2]
[399891725,1766823042943,-298.26089446,0.00018887,2]
[399891726,1766823042954,-151.0,0.00018931,2]
[399891727,1766823042965,-151.0,0.00018931,2]
[399891728,1766823042975,-158.193572,0.00018931,2]
[399891729,1766823042985,-170.582746,0.00018931,2]
[399891730,1766823042995,-18381.82880495,0.00018932,2]
[399891731,1766823043009,-3336.62340853,0.00018932,2]
[399891732,1766823043021,-2481.99826447,0.00018932,2]
[399891733,1766823043031,-1000.0,0.00019,6]
[399891734,1766823043041,-55602.38423232,0.00019,2]
[399891735,1766823043055,-697.93871853,0.00019,2]
[399891736,1766823043065,-706.4958201,0.00019,2]
[399891737,1766823043075,-300.0,0.00019,2]
[399891738,1766823043085,-151.0,0.00019,2]
[399891739,1766823043096,-200.77537576,0.00019082,2]
[399891740,1766823043106,-279.39,0.000191,2]
[399891741,1766823043116,-22953.5075085,0.00019149,2]
[399891742,1766823043126,-1800.54,0.00019178,2]
[399891743,1766823043135,-151.0,0.00019178,2]
[399891744,1766823043146,-151.0,0.00019178,2]
[399891745,1766823043157,-151.0,0.00019178,2]
[399891746,1766823043167,-333.15698,0.00019178,2]
[399891747,1766823043177,-333.15698,0.00019178,2]
[399891748,1766823043187,-333.15698,0.00019178,2]
[399891749,1766823043197,-333.15698,0.00019178,2]
[399891750,1766823043207,-333.15698,0.00019178,2]
[399891751,1766823043217,-333.15698,0.00019178,2]
[399891752,1766823043227,-333.15698,0.00019178,2]
[399891753,1766823043236,-333.15698,0.00019178,2]
[399891754,1766823043249,-333.15698,0.00019178,2]
[399891755,1766823043259,-333.15698,0.00019178,2]
[399891756,1766823043270,-333.15698,0.00019178,2]
[399891757,1766823043280,-333.15698,0.00019178,2]
[399891758,1766823043291,-402.76822901,0.00019257,2]
[399891759,1766823043301,-1099.0,0.00019267,2]
[399891760,1766823043312,-601.84,0.00019338,2]
[399891761,1766823043322,-162.35979,0.00019339,2]
[399891762,1766823043332,-500.0,0.00019378,7]
[399891763,1766823043342,-1000.0,0.00019438,2]
[399891764,1766823043352,-287.83,0.00019555,2]
[399891765,1766823043362,-5121.6198063,0.00019629,2]
[399891766,1766823043372,-800.0,0.00019652,7]
[399891767,1766823043381,-600.0,0.00019652,7]
[399891768,1766823043391,-503.6,0.0001982,2]
[399891769,1766823043401,-10000.0,0.000199,2]
[399891770,1766823043411,-156.81485742,0.000199,3]
[399891771,1766823043421,-24200.45047795,0.00019927,2]
[399891772,1766823043432,-279.39,0.00019968,2]
[399891773,1766823043443,-10886.10368052,0.0002,2]
[399891774,1766823043453,-8286.97420468,0.0002,2]
[399891775,1766823043464,-1000.0,0.0002,8]
[399891776,1766823043474,-500.0,0.0002,2]
[399891777,1766823043485,-163.74942608,0.0002,2]
[399891778,1766823043495,-3950.0,0.0002,2]
[399891779,1766823043506,-66921.97155255,0.0002,2]
[399891780,1766823043805,-7268.94331302,0.0002,2]
[399891781,1766823043817,-1290.79165848,0.0002,2]
[399891782,1766823043828,-1041.8845648,0.0002,2]
[399891783,1766823043838,-2855.19235709,0.0002,2]
[399891784,1766823043848,-12887.91273718,0.0002,2]
[399891785,1766823043858,-266.125656,0.0002,2]
[399891786,1766823043868,-151.0,0.0002,2]
[399891787,1766823043879,-151.0,0.0002,2]
[399891788,1766823043890,-1000.0,0.0002,7]
[399891789,1766823043899,-150.0,0.0002,2]
[399891790,1766823043910,-150.0,0.0002,2]
[399891791,1766823043920,-194.45093692,0.0002,2]
[399891792,1766823043932,-151.0,0.0002,2]
[399891793,1766823043942,-151.0,0.0002,2]
[399891794,1766823043952,-8720.0,0.0002001,2]
[399891795,1766823043962,-162.19,0.00020068,2]
[399891796,1766823043972,-1003.88682252,0.000201,2]
[399891797,1766823043982,-1000.0,0.00020116,2]
[399891798,1766823043993,-336.03,0.00020187,2]
[399891799,1766823044003,-23444.12589949,0.00020213,2]
[399891800,1766823044013,-333.15698,0.00020213,2]
[399891801,1766823044023,-333.15698,0.00020213,2]
[399891802,1766823044033,-333.15698,0.00020213,2]
[399891803,1766823044043,-333.15698,0.00020213,2]
[399891804,1766823044052,-407.64016131,0.00020248,2]
[399891805,1766823044063,-309.29654756,0.00020256,2]
[399891806,1766823044073,-1099.0,0.00020281,2]
[399891807,1766823044083,-161.95652614,0.00020448,2]
[399891808,1766823044093,-500.0,0.00020474,7]
[399891809,1766823044103,-192.47,0.00020548,2]
[399891810,1766823044113,-21455.76,0.00020548,2]
[399891811,1766823044124,-1000.0,0.00020562,2]
[399891812,1766823044134,-22588.55268653,0.000207,2]
[399891813,1766823044144,-2000.0,0.000207,2]
[399891814,1766823044154,-800.0,0.00020748,7]
[399891815,1766823044163,-600.0,0.00020748,7]
[399891816,1766823044173,-1000.0,0.00020795,2]
[399891817,1766823044184,-279.39,0.00020836,2]
[399891818,1766823044193,-24200.45047795,0.00020921,2]
[399891819,1766823044205,-20000.0,0.00021,2]
[399891820,1766823044215,-1189.58132675,0.00021,2]
[399891821,1766823044224,-196.35720147,0.00021,2]
[399891823,1766823044234,-350.0,0.00021,2]
[399891826,1766823044244,-151.0,0.00021,2]
[399891827,1766823044255,-5627.21,0.00021068,2]
[399891828,1766823044266,-287.83,0.00021332,2]
[399891829,1766823044276,-1099.0,0.00021349,2]
[399891830,1766823044286,-150.0,0.00021444,2]
[399891831,1766823044299,-221.47311405,0.000215,2]
[399891832,1766823044309,-503.6,0.00021564,2]
[399891833,1766823044319,-500.0,0.0002157,7]
[399891834,1766823044331,-320.74051982,0.00021625,2]
[399891835,1766823044341,-279.39,0.00021704,2]
[399891836,1766823044351,-9999.99,0.00021757,2]
[399891837,1766823044361,-19999.99,0.00021757,2]
[399891838,1766823044372,-9135.11,0.00021757,2]
[399891839,1766823044382,-800.0,0.00021844,7]
[399891840,1766823044392,-600.0,0.00021844,7]
[399891841,1766823044402,-151.000007,0.00021866,2]
[399891842,1766823044412,-151.000012,0.00021866,2]
[399891843,1766823044422,-24200.45047795,0.00021916,2]
[399891844,1766823044431,-277.06,0.00021918,30]
[399891845,1766823044442,-3003.78,0.00021918,2]
[399891846,1766823044451,-151.0,0.00021918,2]
[399891847,1766823044460,-151.0,0.00021918,2]
[399891848,1766823044470,-151.0,0.00021918,2]
[399891849,1766823044480,-151.0,0.00021918,2]
[399891850,1766823044490,-5000.0,0.00021918,2]
[399891851,1766823044501,-153.65384883,0.00021918,2]
[399891852,1766823044510,-500.0,0.00021918,2]
[399891853,1766823044521,-500.0,0.00021918,2]
[399891854,1766823044531,-500.0,0.00021918,2]
[399891855,1766823044541,-150.0,0.00021918,2]
[399891856,1766823044552,-500.0,0.00021918,2]
[399891857,1766823044562,-500.0,0.00021918,2]
[399891858,1766823044571,-500.0,0.00021918,2]
[399891859,1766823044581,-250.0,0.00021992,2]
[399891860,1766823044591,-6582.06,0.00022,7]
[399891861,1766823044603,-940.99570647,0.00022,15]
[399891862,1766823044612,-368198.28017693,0.00022,4]
[399891863,1766823044622,-151.0,0.00022,2]
[399891864,1766823044632,-333.15698,0.00022,2]
[399891865,1766823044642,-333.15698,0.00022,2]
[399891866,1766823044652,-333.15698,0.00022,2]
[399891867,1766823044663,-333.156986,0.00022,2]
[399891868,1766823044672,-151.0,0.00022,2]
[399891869,1766823044683,-160.61,0.000221,7]
[399891870,1766823044692,-156.93,0.00022171,2]
[399891871,1766823044702,-334.21,0.00022257,2]
[399891872,1766823044712,-23444.12589949,0.00022321,2]
[399891873,1766823044722,-1099.0,0.00022472,2]
[399891874,1766823044732,-402.76822901,0.00022531,2]
[399891875,1766823044742,-1984.29,0.00022536,2]
[399891876,1766823044752,-350.0,0.0002254,2]
[399891877,1766823044763,-279.39,0.00022572,2]
[399891878,1766823044773,-1000.0,0.00022619,2]
[399891879,1766823044783,-500.0,0.00022666,7]
[399891880,1766823044794,-24200.45047795,0.00022911,2]
[399891881,1766823044804,-800.0,0.0002294,7]
[399891882,1766823044814,-600.0,0.0002294,7]
[399891883,1766823044824,-345.67558927,0.00022994,2]
[399891884,1766823044834,-400.0,0.00023,2]
[399891885,1766823044844,-250.0,0.00023015,2]
[399891886,1766823044853,-150.098,0.00023015,2]
[399891887,1766823044863,-150.114,0.00023015,2]
[399891888,1766823044873,-150.065,0.00023015,2]
[399891889,1766823044883,-150.0,0.00023015,2]
[399891890,1766823044892,-150.0,0.00023015,2]
[399891891,1766823044902,-6537.0,0.00023015,2]
[399891892,1766823044912,-450.0,0.00023088,2]
[399891893,1766823044922,-152.40600789,0.00023275,2]
[399891894,1766823044932,-503.6,0.00023307,2]
[399891895,1766823044942,-209.23,0.00023336,2]
[399891896,1766823044952,-279.39,0.0002344,2]
[399891897,1766823044962,-151.06982274,0.00023636,2]
[399891898,1766823044972,-1099.0,0.00023655,2]
[399891899,1766823044982,-222.79,0.00023726,2]
[399891900,1766823044992,-500.0,0.00023762,7]
[399891901,1766823045003,-24200.45047795,0.00023905,2]
[399891902,1766823045012,-16645.09979087,0.00024,2]
[399891903,1766823045022,-1018.1226645,0.00024,2]
[399891904,1766823045032,-3600.0,0.00024,2]
[399891905,1766823045043,-318.20343151,0.00024,2]
[399891906,1766823045053,-800.0,0.00024036,7]
[399891907,1766823045062,-600.0,0.00024036,7]
[399891908,1766823045072,-2000.0,0.000244,2]
[399891909,1766823045081,-23444.12589949,0.00024429,2]
[399891910,1766823045091,-407.64016131,0.00024498,2]
[399891911,1766823045101,-1000.0,0.00024658,2]
[399891912,1766823045111,-151.0,0.00024658,2]
[399891913,1766823045120,-151.0,0.00024658,2]
[399891914,1766823045130,-151.0,0.00024658,2]
[399891915,1766823045139,-151.0,0.00024658,2]
[399891916,1766823045149,-151.0,0.00024658,2]
[399891917,1766823045159,-151.0,0.00024658,2]
[399891918,1766823045168,-193.648919,0.00024658,2]
[399891919,1766823045178,-151.0,0.00024658,2]
[399891920,1766823045188,-151.0,0.00024658,2]
[399891921,1766823045198,-151.0,0.00024658,2]
[399891922,1766823045207,-151.0,0.00024658,2]
[399891923,1766823045217,-151.0,0.00024658,2]
[399891924,1766823045227,-153.414654,0.00024658,2]
[399891925,1766823045237,-1000.0,0.00024675,2]
[399891926,1766823045247,-558721.653533,0.000248,3]
[399891927,1766823045257,-299.6312354,0.000248,2]
[399891928,1766823045267,-151.0,0.000248,7]
[399891929,1766823045277,-6582.06,0.000249,7]
[399891930,1766823045288,-1099.0,0.000249,2]
[399891931,1766823045300,-345741.653322,0.000249,3]
[399891932,1766823045310,-151.0,0.000249,7]
[399891933,1766823045322,-24200.45047795,0.000249,2]
[399891934,1766823045331,-250.0,0.00025,7]
[399891935,1766823045341,-150.0,0.00025,2]
[399891936,1766823045351,-503.6,0.00025051,2]
[399891937,1766823045360,-156.93,0.00025242,2]
[399891938,1766823045370,-402.76822901,0.00025805,2]
[399891939,1766823045380,-170.86,0.00025863,2]
[399891940,1766823045390,-150.0,0.00025863,2]
[399891941,1766823045400,-150.0,0.00025863,2]
[399891942,1766823045410,-170.86,0.00025863,2]
[399891943,1766823045419,-170.86,0.00025863,2]
[399891944,1766823045429,-150.0,0.00025863,2]
[399891945,1766823045439,-150.0,0.00025863,2]
[399891946,1766823045449,-170.86,0.00025863,2]
[399891947,1766823045459,-150.0,0.00025863,2]
[399891948,1766823045468,-170.86,0.00025863,2]
[399891949,1766823045479,-150.0,0.00025863,2]
[399891950,1766823045489,-170.86,0.00025863,2]
[399891951,1766823045499,-170.86,0.00025863,2]
[399891952,1766823045508,-150.0,0.00025863,2]
[399891953,1766823045517,-150.0,0.00025863,2]
[399891954,1766823045529,-338.21,0.00025863,2]
[399891955,1766823045538,-150.0,0.00025863,2]
[399891956,1766823045547,-150.0,0.00025863,2]
[399891957,1766823045557,-150.0,0.00025863,2]
[399891958,1766823045567,-500.0,0.00025954,7]
[399891959,1766823045577,-172.4,0.00026,2]
[399891960,1766823045586,-334.21,0.00026009,2]
[399891961,1766823045597,-150.0,0.00026015,2]
[399891962,1766823045606,-150.0,0.00026015,2]
[399891963,1766823045616,-6537.0,0.00026015,2]
[399891964,1766823045626,-1099.0,0.00026145,2]
[399891965,1766823045635,-150.0,0.00026219,2]
[399891966,1766823045645,-298.75,0.00026219,2]
[399891967,1766823045655,-150.8,0.00026219,2]
[399891968,1766823045665,-150.0,0.00026219,2]
[399891969,1766823045675,-800.0,0.00026228,7]
[399891970,1766823045685,-600.0,0.00026228,7]
[399891971,1766823045695,-277.06,0.00026244,30]
[399891972,1766823045705,-23444.12589949,0.00026536,2]
[399891973,1766823045715,-150.77,0.0002664,2]
[399891974,1766823045725,-336.03,0.00026676,2]
[399891975,1766823045735,-168.0,0.00026794,2]
[399891976,1766823045745,-503.6,0.00026795,2]
[399891977,1766823045755,-150.0,0.00027369,2]
[399891978,1766823045764,-500.0,0.00027397,20]
[399891979,1766823045775,-300.0,0.00027397,2]
[399891980,1766823045784,-1099.0,0.00027452,5]
[399891981,1766823045794,-1590.3,0.00027671,2]
[399891982,1766823045803,-659.58,0.00027918,2]
[399891983,1766823045813,-5.3379741,0.000281,2]
[399891984,1766823045958,-1994.6620259,0.000281,2]
[399891985,1766823045968,-500.0,0.00028146,14]
[399891986,1766823045978,-168.0,0.00028313,2]
[399891987,1766823045987,-800.0,0.0002842,14]
[399891988,1766823045997,-600.0,0.0002842,14]
[399891989,1766823046007,-503.6,0.00028538,2]
[399891990,1766823046016,-168.0,0.00028632,2]
[399891991,1766823046026,-23444.12589949,0.00028644,2]
[399891992,1766823046036,-168.0,0.00028687,2]
[399891993,1766823046045,-407.64016131,0.00028749,2]
[399891994,1766823046054,-1099.0,0.00028825,5]
[399891995,1766823046064,-168.0,0.00028996,2]
[399891996,1766823046074,-150.0,0.00029015,2]
[399891997,1766823046083,-150.0,0.00029015,2]
[399891998,1766823046093,-6537.0,0.00029015,2]
[399891999,1766823046104,-402.76822901,0.00029078,2]
[399892000,1766823046114,-150.0,0.00029248,2]
[399892001,1766823046124,-1000.0,0.00029301,2]
[399892002,1766823046134,-1000.0,0.00029318,2]
[399892003,1766823046144,-150.0,0.0002936,2]
[399892004,1766823046208,-1000.0,0.00029374,2]
[399892005,1766823046218,-150.0,0.00029422,2]
[399892006,1766823046227,-168.0,0.0002944,2]
[399892007,1766823046237,-300.0,0.00029451,2]
[399892008,1766823046247,-151.42793174,0.00029481,2]
[399892009,1766823046257,-1000.0,0.0002949,2]
[399892010,1766823046267,-300.0,0.00029495,2]
[399892011,1766823046277,-150.0,0.000295,2]
[399892012,1766823046287,-1000.0,0.00029501,2]
[399892013,1766823046299,-300.0,0.00029579,2]
[399892014,1766823046310,-150.0,0.00029589,2]
[399892015,1766823046319,-300.0,0.00029613,2]
[399892016,1766823046329,-307.25,0.00029671,2]
[399892017,1766823046339,-250.79,0.00029671,2]
[399892018,1766823046349,-170.78,0.00029671,2]
[399892019,1766823046359,-1000.0,0.00029676,2]
[399892020,1766823046368,-1000.0,0.00029739,2]
[399892021,1766823046378,-1000.0,0.00029749,2]
[399892022,1766823046388,-300.0,0.0002976,2]
[399892023,1766823046398,-500.0,0.0002979,14]
[399892024,1766823046407,-1000.0,0.0002984,2]
[399892025,1766823046417,-1000.0,0.00029882,2]
[399892026,1766823046427,-300.0,0.00029889,2]
[399892027,1766823046437,-150.0,0.00029897,2]
[399892028,1766823046447,-254.13060141,0.00029903,2]
[399892029,1766823046458,-1137.39005859,0.00029917,2]
[399892030,1766823046468,-1000.0,0.00029926,2]
[399892031,1766823046478,-222.81,0.00029934,2]
[399892032,1766823046488,-300.0,0.00029938,2]
[399892033,1766823046497,-1000.0,0.00029948,2]
[399892034,1766823046507,-150.0,0.00029971,2]
[399892035,1766823046517,-250.0,0.0003,7]
[399892036,1766823046526,-250.0,0.0003,7]
[399892037,1766823046536,-3774.0,0.0003,3]
[399892038,1766823046546,-150.0,0.00030026,2]
[399892039,1766823046556,-300.0,0.00030028,2]
[399892040,1766823046566,-404.42867268,0.00030029,2]
[399892041,1766823046578,-535.85788251,0.00030029,2]
[399892042,1766823046590,-59.71344481,0.00030029,2]
[399892043,1766823046599,-300.0,0.00030032,2]
[399892044,1766823046610,-1000.0,0.00030038,2]
[399892045,1766823046619,-800.0,0.00030064,14]
[399892046,1766823046629,-592.10538075,0.00030064,14]
[399892047,1766823046763,-217.9488539,0.00019629,2]
[399892048,1766823046774,-915.307,0.0002072,2]
[399892049,1766823046783,-912.0,0.0002372,2]
[399892050,1766823046793,-912.0,0.0002672,2]
[399892051,1766823046803,-7.89461925,0.00030064,14]
[399892052,1766823046814,-150.0,0.00030131,2]
[399892053,1766823046823,-200.0,0.00030137,2]
[399892054,1766823046833,-170.1,0.000302,30]